bitfinex-derivatives/quotes_SOLF0:USTF0_20251002
["timestamp","ask_amount","ask_price","bid_price","bid_amount"]
[1759403989783,3.994,225.23,225.2,2.15]
[1759403989982,7.43,225.22,225.2,2.15]
[1759403990380,3.994,225.23,225.2,2.15]
[1759403990684,7.43,225.21,225.2,2.15]
[1759403991786,3.9942,225.22,225.19,2.68]
[1759403992082,7.43,225.21,225.19,10.28]
[1759403995079,7.43,225.21,225.19,12.43]
[1759403998395,7.49,225.21,225.19,4.83]
[1759403999093,3.9942,225.22,225.19,4.83]
[1759403999291,7.49,225.21,225.19,4.83]
[1759403999797,7.49,225.2,225.19,4.83]
[1759404000295,10.54697977,225.2,225.19,4.83]
[1759404000988,10.54697977,225.2,225.19,2.15]
[1759404002296,11.65664682,225.2,225.19,2.15]
[1759404003600,10.54697977,225.2,225.19,2.15]
[1759404003797,11.65664657,225.2,225.19,2.15]
[1759404004390,10.54697977,225.2,225.19,2.15]
[1759404016919,11.90948229,225.2,225.19,2.15]
[1759404017111,3.9946,225.19,225.17,2.43083538]
[1759404017311,11.90948229,225.18,225.17,2.26357942]
[1759404017513,11.6566929,225.18,225.17,2.26357942]
[1759404018616,10.54697977,225.18,225.17,2.26357942]
[1759404021623,3.05697977,225.18,225.17,9.92357942]
[1759404022708,10.90697977,225.18,225.17,2.26357942]
[1759404023518,3.05697977,225.18,225.17,9.54357942]
[1759404024820,10.75697977,225.18,225.17,2.26357942]
[1759404033618,10.75697977,225.18,225.16,7.47]
[1759404033812,7.7,225.18,225.16,7.47]
[1759404034226,3.9944,225.21,225.16,7.47]
[1759404034418,7.7,225.19,225.16,7.47]
[1759404035319,3.08842339,225.18,225.16,7.47]
[1759404035515,7.7,225.19,225.16,7.47]
[1759404035714,3.08859396,225.18,225.16,7.47]
[1759404035924,7.7,225.19,225.16,7.47]
[1759404036118,3.08853266,225.18,225.16,7.47]
[1759404036421,11.6941,225.23,225.17,1.36250252]
[1759404036623,4.19858902,225.22,225.19,1.36250252]
[1759404036822,3.08899485,225.21,225.2,7.47]
[1759404037319,7.7,225.23,225.2,7.47]
[1759404037524,3.08881747,225.22,225.21,8.83250252]
[1759404037723,3.08881747,225.23,225.22,7.47]
[1759404038323,8.80945448,225.26,225.21,1.36250252]
[1759404038524,39.6729,225.29,225.24,7.47]
[1759404038525,3.06103634,225.25,225.24,7.47]
[1759404041131,3.9931,225.28,225.24,7.47]
[1759404041332,10.76118043,225.27,225.24,7.47]
[1759404041532,3.06118043,225.26,225.25,8.83250252]
[1759404041831,7.7,225.29,225.25,8.83250252]
[1759404042021,3.04894152,225.28,225.25,1.36250252]
[1759404042220,3.04894152,225.27,225.26,7.47]
[1759404042423,9.68926,225.32,225.28,7.47]
[1759404042424,3.04835276,225.29,225.28,7.47]
[1759404043430,7.7,225.3,225.28,7.47]
[1759404044026,1.98926,225.32,225.2,11.4643]
[1759404044225,7.7,225.3,225.22,1.36250252]
[1759404044426,7.7,225.28,225.22,1.36250252]
[1759404044728,7.7,225.26,225.22,8.83250252]
[1759404044929,1.1091599,225.3,225.22,8.83250252]
[1759404044930,7.7,225.28,225.22,8.83250252]
[1759404045233,7.03918418,225.27,225.21,1.36250252]
[1759404045531,7.7,225.26,225.21,1.36250252]
[1759404045730,11.6933,225.27,225.21,1.36250252]
[1759404050224,11.6933,225.27,225.22,7.47]
[1759404050426,11.6933,225.27,225.21,8.83250252]
[1759404051137,79.6,225.3,225.16,1.36250252]
[1759404051138,9.06250252,225.25,225.16,1.36250252]
[1759404051339,7.7,225.22,225.14,8.83250252]
[1759404051538,10.74305755,225.22,225.14,8.83250252]
[1759404052242,7.7,225.2,225.14,8.83250252]
[1759404054638,3.9944,225.21,225.15,2.26]
[1759404054836,7.77,225.2,225.15,2.26]
[1759404055236,5.35690252,225.21,225.15,2.26]
[1759404055637,7.77,225.2,225.15,2.26]
[1759404056035,5.35690252,225.21,225.15,2.26]
[1759404056341,7.77,225.2,225.15,2.26]
[1759404056537,3.9946,225.2,225.15,10.0]
[1759404056741,7.77,225.19,225.15,10.0]
[1759404057041,3.9946,225.2,225.15,10.0]
[1759404058045,7.77,225.19,225.15,10.0]
[1759404058244,3.9946,225.2,225.15,10.0]
[1759404058743,7.77,225.19,225.15,10.0]
[1759404059042,3.9946,225.2,225.15,10.0]
[1759404060040,7.77,225.19,225.15,10.0]
[1759404060235,3.9946,225.2,225.15,10.0]
[1759404060439,7.77,225.19,225.15,2.26]
[1759404060638,11.764,225.23,225.17,1.36250252]
[1759404060840,7.77,225.23,225.17,1.36250252]
[1759404061040,7.77,225.23,225.18,7.74]
[1759404061245,7.77,225.23,225.17,9.10250252]
[1759404062149,7.77,225.23,225.17,5.35730252]
[1759404062446,3.9939,225.24,225.18,7.74]
[1759404063737,3.9939,225.24,225.19,1.36250252]
[1759404064246,7.77,225.26,225.15,2.26]
[1759404064247,7.77,225.26,225.21,1.36250252]
[1759404064644,7.77,225.26,225.22,7.74]
[1759404064844,10.81064827,225.26,225.22,7.74]
[1759404065045,10.81064827,225.26,225.21,1.36250252]
[1759404065246,10.81064827,225.26,225.22,7.74]
[1759404065740,10.81064827,225.26,225.21,1.36250252]
[1759404065944,10.81064827,225.26,225.22,7.74]
[1759404066454,10.81064827,225.26,225.21,3.9942]
[1759404067047,10.81064827,225.26,225.22,7.74]
[1759404067751,7.77,225.26,225.22,7.74]
[1759404068449,3.9933,225.27,225.22,7.74]
[1759404068650,7.77,225.26,225.22,7.74]
[1759404068948,3.9933,225.27,225.22,7.74]
[1759404069254,7.77,225.26,225.22,7.74]
[1759404069445,7.77,225.26,225.21,7.74]
[1759404069650,11.7633,225.27,225.2,11.7343]
[1759404073662,11.7633,225.27,225.21,7.74]
[1759404075059,7.77,225.31,225.22,7.74]
[1759404075261,10.80614151,225.31,225.22,7.74]
[1759404075459,3.03614151,225.31,225.25,7.74]
[1759404075664,1.98926,225.32,225.25,7.74]
[1759404076067,1.98926,225.32,225.27,2.12753678]
[1759404076364,1.98926,225.32,225.28,7.74]
[1759404076668,1.98926,225.32,225.27,6.12073678]
[1759404077267,1.98926,225.32,225.26,2.12753678]
[1759404077462,7.77,225.31,225.25,7.74]
[1759404078067,11.7626,225.31,225.25,7.74]
[1759404082067,7.77,225.31,225.25,7.74]
[1759404084474,7.77,225.31,225.25,11.7334]
[1759404085576,1.98926,225.32,225.25,3.9934]
[1759404085774,1.98926,225.32,225.26,7.51]
[1759404087072,1.98926,225.32,225.26,11.5033]
[1759404087273,1.98926,225.32,225.28,7.51]
[1759404087471,1.98926,225.32,225.31,7.51]
[1759404087771,1.98926,225.32,225.21,62.1323]
[1759404087772,9.19926,225.32,225.29,7.51]
[1759404091376,1.98926,225.32,225.29,7.51]
[1759404091774,1.98926,225.32,225.28,2.12753678]
[1759404092374,1.98926,225.32,225.27,7.51]
[1759404092583,1.98926,225.32,225.3,7.51]
[1759404093080,1.98926,225.32,225.29,3.9927]
[1759404093280,1.98926,225.32,225.3,7.51]
[1759404094078,9.19926,225.32,225.28,2.12753678]
[1759404094283,1.98926,225.32,225.3,7.51]
[1759404096086,1.98926,225.32,225.29,79.52]
[1759404096279,1.98926,225.32,225.29,87.03]
[1759404096786,1.98926,225.32,225.29,79.52]
[1759404096987,1.98926,225.32,225.3,7.51]
[1759404099689,1.98926,225.32,225.3,3.9925]
[1759404099987,1.98926,225.32,225.31,9.63753678]
[1759404101889,1.98926,225.32,225.31,117.61753678]
[1759404102591,1.98926,225.32,225.31,7.51]
[1759404102895,1.98926,225.32,225.31,115.51]
[1759404103190,7.21,225.42,225.35,11.5017]
[1759404103392,7.21,225.42,225.36,107.98]
[1759404104595,11.2006,225.42,225.36,107.98]
[1759404105196,11.2006,225.42,225.36,108.08]
[1759404105498,11.2006,225.42,225.35,9.63753678]
[1759404105694,11.2006,225.42,225.36,108.08]
[1759404108492,11.2006,225.42,225.35,9.63753678]
[1759404108690,11.2006,225.42,225.36,108.04]
[1759404110997,11.2006,225.42,225.36,108.0]
[1759404111796,11.2006,225.42,225.36,115.51]
[1759404117994,3.9908,225.41,225.36,115.51]
[1759404118503,3.9908,225.41,225.36,108.0]
[1759404118896,11.1308,225.41,225.36,108.0]
[1759404119092,11.1308,225.41,225.37,7.57]
[1759404119605,11.1308,225.41,225.36,108.0]
[1759404120302,3.9904,225.43,225.37,7.57]
[1759404121607,3.9904,225.43,225.37,11.5613]
[1759404121805,7.14,225.48,225.38,7.57]
[1759404122002,3.03609645,225.47,225.38,7.57]
[1759404122305,3.03609645,225.46,225.38,7.57]
[1759404122505,3.03609645,225.47,225.38,7.57]
[1759404122804,3.03556892,225.46,225.38,7.57]
[1759404123006,7.14,225.48,225.38,7.57]
[1759404123007,3.03556892,225.47,225.38,7.57]
[1759404123207,3.03556892,225.46,225.38,7.57]
[1759404123395,3.03556892,225.47,225.38,7.57]
[1759404123601,3.9901,225.45,225.4,7.57]
[1759404123901,7.14,225.48,225.42,7.57]
[1759404125607,7.14,225.48,225.42,11.5604]
[1759404126304,7.14,225.48,225.44,1.35881935]
[1759404126608,7.14,225.48,225.45,7.57]
[1759404127304,7.14,225.5,225.44,1.35881935]
[1759404127606,7.14,225.52,225.47,7.57]
[1759404127801,1.35881935,225.53,225.47,7.57]
[1759404128007,7.14,225.52,225.47,7.57]
[1759404128403,1.35881935,225.53,225.47,7.57]
[1759404128606,3.9889,225.52,225.47,7.57]
[1759404129109,7.14,225.5,225.47,7.57]
[1759404129306,3.9891,225.51,225.46,9.83]
[1759404129508,7.14,225.5,225.46,9.83]
[1759404130209,3.9891,225.51,225.46,9.83]
[1759404130908,3.9891,225.51,225.47,7.57]
[1759404131313,7.14,225.5,225.46,2.26]
[1759404131606,1.35881935,225.5,225.46,2.26]
[1759404131802,7.14,225.49,225.46,2.26]
[1759404132005,1.35881935,225.5,225.46,2.26]
[1759404132706,3.9893,225.49,225.46,2.26]
[1759404133010,7.14,225.49,225.46,2.26]
[1759404133911,1.35881935,225.5,225.46,2.26]
[1759404134110,3.9896,225.48,225.46,2.26]
[1759404134311,7.14,225.47,225.46,2.26]
[1759404136611,5.34801935,225.5,225.46,2.26]
[1759404136911,11.1292,225.5,225.46,9.83]
[1759404137111,7.14,225.49,225.46,9.83]
[1759404137912,11.1294,225.49,225.46,9.83]
[1759404138512,7.14,225.48,225.46,9.83]
[1759404139313,7.14,225.47,225.46,2.26]
[1759404140014,7.14,225.46,225.38,7.57]
[1759404140517,5.34901935,225.45,225.38,7.57]
[1759404144219,7.4,225.42,225.35,9.15881935]
[1759404144815,1.35881935,225.39,225.3,9.15881935]
[1759404145115,1.35881935,225.37,225.3,7.8]
[1759404147222,3.9916,225.36,225.3,7.8]
[1759404148320,1.35881935,225.37,225.3,7.8]
[1759404148519,1.35881935,225.33,225.24,9.15881935]
[1759404149024,7.4,225.32,225.25,1.35881935]
[1759404150627,11.3924,225.32,225.25,1.35881935]
[1759404152226,7.4,225.32,225.24,7.8]
[1759404152427,7.4,225.3,225.24,7.8]
[1759404152821,62.0989,225.34,225.26,1.35881935]
[1759404152822,1.35881935,225.33,225.26,1.35881935]
[1759404153126,1.35881935,225.37,225.29,7.8]
[1759404153328,7.4,225.38,225.3,1.35881935]
[1759404154627,3.9916,225.36,225.3,1.35881935]
[1759404154828,11.3916,225.36,225.3,1.35881935]
[1759404155423,3.9912,225.39,225.32,1.35881935]
[1759404155623,7.4,225.4,225.35,7.8]
[1759404155826,3.64782066,225.42,225.34,1.35881935]
[1759404156029,3.9907,225.41,225.35,7.8]
[1759404157133,11.3904,225.43,225.36,1.35881935]
[1759404158120,3.9907,225.42,225.36,1.35881935]
[1759404160823,7.4,225.43,225.39,7.8]
[1759404162429,7.4,225.43,225.4,1.35881935]
[1759404163132,7.4,225.43,225.4,9.15881935]
[1759404165236,3.9903,225.44,225.4,1.35881935]
[1759404165422,7.4,225.43,225.4,1.35881935]
[1759404165628,3.9903,225.44,225.4,1.35881935]
[1759404166335,7.4,225.43,225.4,1.35881935]
[1759404166634,3.9903,225.44,225.4,1.35881935]
[1759404166832,7.4,225.43,225.4,1.35881935]
[1759404167228,3.9903,225.44,225.4,1.35881935]
[1759404167229,11.3903,225.44,225.4,9.15881935]
[1759404167425,7.4,225.43,225.4,9.15881935]
[1759404167625,3.9903,225.44,225.4,9.15881935]
[1759404167835,7.4,225.43,225.4,1.35881935]
[1759404168028,3.9903,225.44,225.4,1.35881935]
[1759404168229,7.4,225.43,225.4,1.35881935]
[1759404168734,3.9903,225.44,225.4,1.35881935]
[1759404169535,7.4,225.43,225.4,1.35881935]
[1759404169734,7.4,225.43,225.37,11.7913]
[1759404169930,3.9903,225.44,225.4,1.35881935]
[1759404170134,7.4,225.43,225.4,1.35881935]
[1759404170332,3.9903,225.44,225.4,1.35881935]
[1759404170527,7.4,225.43,225.4,1.35881935]
[1759404171133,3.9903,225.44,225.4,1.35881935]
[1759404173036,7.4,225.43,225.4,1.35881935]
[1759404173235,3.9903,225.44,225.4,1.35881935]
[1759404175128,7.26,225.43,225.4,1.35881935]
[1759404175334,7.26,225.43,225.41,7.89]
[1759404176635,7.26,225.45,225.42,9.24881935]
[1759404176836,11.2495,225.48,225.44,1.35881935]
[1759404177135,3.9895,225.48,225.44,1.35881935]
[1759404177329,7.26,225.47,225.44,1.35881935]
[1759404178134,3.9895,225.48,225.44,1.35881935]
[1759404178332,7.26,225.47,225.44,1.35881935]
[1759404178531,3.9895,225.48,225.44,1.35881935]
[1759404179328,7.10310746,225.48,225.44,1.35881935]
[1759404179531,7.26,225.47,225.44,1.35881935]
[1759404180045,3.9895,225.48,225.44,1.35881935]
[1759404180339,7.26,225.47,225.44,9.24881935]
[1759404181440,3.9895,225.48,225.44,9.24881935]
[1759404181640,7.26,225.47,225.44,9.24881935]
[1759404182938,3.9892,225.5,225.44,9.24881935]
[1759404183245,3.11374737,225.51,225.49,7.89]
[1759404184336,7.26,225.55,225.49,7.89]
[1759404184542,7.26,225.55,225.46,3.9897]
[1759404184543,3.11263958,225.54,225.51,7.89]
[1759404184742,3.11263958,225.53,225.5,1.35881935]
[1759404185036,3.11263958,225.55,225.5,1.35881935]
[1759404185641,3.9885,225.54,225.5,1.35881935]
[1759404185837,3.9885,225.54,225.51,7.89]
[1759404186236,3.9885,225.54,225.5,1.35881935]
[1759404186543,3.9885,225.54,225.51,7.89]
[1759404187343,11.2485,225.54,225.51,7.89]
[1759404191645,7.26,225.53,225.47,3.9895]
[1759404191844,11.2487,225.53,225.47,3.9895]
[1759404192746,11.2487,225.53,225.48,7.89]
[1759404193140,11.2487,225.53,225.45,6.11248874]
[1759404193444,11.2487,225.53,225.46,7.89]
[1759404193840,3.9889,225.52,225.46,7.89]
[1759404194242,69.3083,225.52,225.42,7.89]
[1759404194548,69.3083,225.52,225.38,7.89]
[1759404194549,7.26,225.5,225.38,7.89]
[1759404195346,10.36292042,225.5,225.38,7.89]
[1759404195546,3.99,225.46,225.39,3.991]
[1759404197253,3.99,225.46,225.4,7.89]
[1759404198549,3.9901,225.45,225.4,7.89]
[1759404198943,11.2501,225.45,225.39,3.991]
[1759404199342,11.2501,225.45,225.4,7.89]
[1759404199542,11.2501,225.45,225.39,3.991]
[1759404199741,11.2501,225.45,225.4,7.89]
[1759404199941,11.2501,225.45,225.39,3.991]
[1759404200451,11.2501,225.45,225.4,7.89]
[1759404200854,11.2501,225.45,225.39,3.991]
[1759404201350,11.2503,225.44,225.38,10.01248874]
[1759404201553,7.26,225.47,225.36,2.12248874]
[1759404201855,7.26,225.45,225.36,2.12248874]
[1759404202049,10.36913619,225.45,225.36,2.12248874]
[1759404202246,3.9907,225.42,225.36,2.12248874]
[1759404202446,7.26,225.43,225.35,7.89]
[1759404203453,10.36939923,225.43,225.35,7.89]
[1759404203654,7.26,225.43,225.35,7.89]
[1759404204255,10.36961441,225.43,225.35,7.89]
[1759404204458,7.26,225.43,225.35,7.89]
[1759404204653,11.2504,225.43,225.36,3.9916]
[1759404204854,7.26,225.43,225.37,7.63]
[1759404212970,7.26,225.43,225.34,3.9919]
[1759404213871,7.18,225.4,225.34,3.9919]
[1759404214272,7.18,225.4,225.33,9.75248874]
[1759404214574,11.171,225.4,225.33,20.95178511]
[1759404214762,11.171,225.4,225.33,7.63]
[1759404215570,11.171,225.4,225.33,11.622]
[1759404216675,7.18,225.4,225.33,7.63]
[1759404218670,7.18,225.4,225.35,3.9916]
[1759404218872,7.18,225.42,225.33,7.63]
[1759404219165,10.28867905,225.42,225.33,7.63]
[1759404219373,10.28867905,225.42,225.25,4.95430454]
[1759404219374,7.18,225.38,225.3,7.63]
[1759404220573,3.9917,225.36,225.3,11.6225]
[1759404221074,11.1713,225.38,225.3,11.6225]
[1759404221675,3.9916,225.36,225.3,11.6225]
[1759404222377,11.1716,225.36,225.3,11.6225]
[1759404224569,11.1716,225.36,225.3,7.63]
[1759404225175,11.1716,225.36,225.28,3.993]
[1759404227286,11.1716,225.36,225.29,11.6227]
[1759404230283,7.18,225.36,225.3,3.9925]
[1759404230483,7.18,225.36,225.31,7.63]
[1759404230886,7.18,225.36,225.3,11.6225]
[1759404232883,11.1717,225.36,225.3,11.6225]
[1759404233090,64.19918874,225.42,225.3,3.9925]
[1759404233278,10.28831908,225.41,225.31,7.63]
[1759404233482,7.18,225.39,225.31,7.63]
[1759404234385,10.90822685,225.38,225.23,7.9]
[1759404234583,7.8,225.36,225.26,7.9]
[1759404235080,3.9919,225.35,225.28,3.9929]
[1759404235278,7.8,225.34,225.28,3.9929]
[1759404235777,11.7921,225.34,225.28,3.9929]
[1759404238990,7.8,225.32,225.28,11.8929]
[1759404240892,7.8,225.32,225.29,7.9]
[1759404243999,7.8,225.33,225.29,7.9]
[1759404244200,7.8,225.36,225.29,7.9]
[1759404244402,14.90213797,225.35,225.28,11.8929]
[1759404244604,11.7918,225.35,225.28,11.8929]
[1759404245398,3.9921,225.34,225.28,11.8929]
[1759404246203,3.9923,225.33,225.28,7.9]
[1759404246402,3.9923,225.33,225.27,2.15]
[1759404246697,3.9923,225.33,225.28,7.9]
[1759404246897,64.20808874,225.39,225.28,7.9]
[1759404246898,3.9918,225.35,225.28,7.9]
[1759404247293,14.90302768,225.35,225.28,7.9]
[1759404247491,11.7918,225.35,225.28,7.9]
[1759404248602,7.8,225.39,225.29,7.9]
[1759404248800,7.8,225.39,225.32,7.9]
[1759404249000,7.8,225.39,225.33,3.992]
[1759404249205,3.1118387,225.41,225.32,7.9]
[1759404249600,3.1118387,225.41,225.35,3.9916]
[1759404249800,3.1118387,225.41,225.35,11.8916]
[1759404250208,3.1118387,225.41,225.35,13.251414]
[1759404253608,7.8,225.42,225.38,7.9]
[1759404253807,10.90696887,225.44,225.38,7.9]
[1759404254108,3.10696887,225.43,225.38,7.9]
[1759404254307,7.8,225.41,225.38,7.9]
[1759404255303,11.7908,225.41,225.34,11.8919]
[1759404255505,7.8,225.38,225.31,7.9]
[1759404255910,7.8,225.42,225.34,1.359814]
[1759404256210,3.10698703,225.41,225.34,1.359814]
[1759404256512,3.10698703,225.4,225.34,1.359814]
[1759404256711,10.90698703,225.39,225.35,7.9]
[1759404256911,7.8,225.39,225.35,7.9]
[1759404257705,10.90754733,225.39,225.35,7.9]
[1759404258220,7.8,225.39,225.35,7.9]
[1759404259412,7.8,225.38,225.35,7.9]
[1759404260507,7.8,225.37,225.34,2.67]
[1759404260707,1.359814,225.37,225.34,2.67]
[1759404260903,9.159814,225.35,225.34,2.67]
[1759404261107,12.26861513,225.35,225.34,2.67]
[1759404262008,3.9925,225.31,225.28,7.9]
[1759404262306,3.9925,225.31,225.28,2.15]
[1759404262511,7.28,225.3,225.28,2.15]
[1759404262700,3.9925,225.31,225.28,2.15]
[1759404262904,7.28,225.3,225.28,2.15]
[1759404266211,3.9925,225.31,225.28,2.15]
[1759404266414,7.12,225.3,225.28,2.15]
[1759404270214,3.9925,225.31,225.28,2.15]
[1759404270416,7.12,225.3,225.28,2.15]
[1759404270814,7.12,225.29,225.28,2.15]
[1759404273616,7.12,225.28,225.21,7.78]
[1759404274412,7.12,225.25,225.15,3.9952]
[1759404274613,1.359814,225.24,225.14,9.139814]
[1759404274806,1.359814,225.24,225.17,7.78]
[1759404275816,1.359814,225.24,225.17,11.7748]
[1759404276015,7.12,225.29,225.2,1.359814]
[1759404276209,7.12,225.29,225.21,7.78]
[1759404276210,3.1193208,225.28,225.21,7.78]
[1759404277116,10.2393208,225.29,225.22,2.15]
[1759404277620,3.9932,225.28,225.22,2.15]
[1759404278924,7.11104575,225.28,225.22,2.15]
[1759404280219,7.11013032,225.28,225.22,2.15]
[1759404280928,7.12,225.25,225.22,2.15]
[1759404281124,7.12,225.28,225.22,2.15]
[1759404281814,7.12,225.26,225.22,9.93]
[1759404282014,7.12,225.26,225.23,7.78]
[1759404284718,3.9928,225.29,225.23,7.78]
[1759404285021,7.12,225.36,225.29,7.78]
[1759404285224,7.12,225.36,225.32,1.359814]
[1759404285517,8.479814,225.37,225.27,1.359814]
[1759404286120,7.12,225.34,225.27,1.359814]
[1759404288721,3.9922,225.33,225.23,3.9937]
[1759404288927,8.479814,225.32,225.24,1.359814]
[1759404289720,7.12,225.32,225.24,1.359814]
[1759404290620,3.9926,225.31,225.24,1.359814]
[1759404291329,7.12,225.3,225.24,1.359814]
[1759404291525,7.12,225.3,225.26,1.359814]
[1759404291926,3.9926,225.31,225.26,1.359814]
[1759404292125,7.12,225.3,225.26,1.359814]
[1759404292928,3.9926,225.31,225.26,1.359814]
[1759404293128,7.12,225.3,225.26,1.359814]
[1759404293328,7.12,225.3,225.24,1.359814]
[1759404295428,63.458414,225.34,225.22,9.93]
[1759404295632,7.16,225.31,225.22,2.15]
[1759404295827,7.16,225.29,225.22,2.15]
[1759404297628,3.9934,225.27,225.22,2.15]
[1759404298223,7.16,225.26,225.22,2.15]
[1759404298428,3.9934,225.27,225.22,2.15]
[1759404298729,7.16,225.26,225.22,2.15]
[1759404298924,3.9934,225.27,225.22,9.64]
[1759404299329,7.16,225.26,225.22,2.15]
[1759404299729,7.16,225.26,225.22,9.64]
[1759404299930,3.9934,225.27,225.22,9.64]
[1759404300330,7.16,225.26,225.22,9.64]
[1759404300530,3.9934,225.27,225.22,9.64]
[1759404300937,7.16,225.26,225.22,9.64]
[1759404301235,7.16,225.26,225.22,2.15]
[1759404301431,3.9928,225.29,225.23,7.49]
[1759404301639,7.11593033,225.29,225.23,7.49]
[1759404302232,11.1528,225.29,225.25,7.49]
[1759404302430,7.16,225.28,225.25,7.49]
[1759404303039,7.16,225.28,225.24,1.359814]
[1759404303337,3.9928,225.29,225.24,1.359814]
[1759404303739,7.16,225.28,225.24,1.359814]
[1759404303933,3.9928,225.29,225.24,1.359814]
[1759404304133,3.12621022,225.28,225.24,1.359814]
[1759404304333,7.16,225.27,225.24,1.359814]
[1759404304536,7.16,225.27,225.25,2.14]
[1759404305135,7.16,225.28,225.25,2.14]
[1759404305839,3.9928,225.29,225.25,2.14]
[1759404306036,3.1278401,225.28,225.25,2.14]
[1759404306240,7.16,225.27,225.25,2.14]
[1759404306944,7.16,225.27,225.25,9.63]
[1759404314844,7.16,225.27,225.25,2.14]
[1759404315948,3.9928,225.29,225.25,2.14]
[1759404316150,7.16,225.27,225.25,2.14]
[1759404316650,7.16,225.28,225.25,2.14]
[1759404317041,3.9928,225.29,225.25,2.14]
[1759404317242,7.16,225.27,225.25,2.14]
[1759404317647,7.16,225.31,225.25,9.63]
[1759404317846,3.12046765,225.3,225.25,9.63]
[1759404318042,7.16,225.28,225.25,9.63]
[1759404319250,67.18714728,225.35,225.25,9.63]
[1759404319456,7.16,225.33,225.25,9.63]
[1759404319656,7.16,225.31,225.25,9.63]
[1759404319859,7.16,225.29,225.25,9.63]
[1759404320060,10.28053254,225.28,225.25,9.63]
[1759404320255,1.10916136,225.32,225.25,9.63]
[1759404320560,11.1528,225.3,225.25,9.63]
[1759404320764,7.16,225.28,225.25,2.14]
[1759404321063,7.16,225.26,225.25,2.14]
[1759404321256,10.28094686,225.26,225.25,2.14]
[1759404332663,11.39030572,225.26,225.25,2.14]
[1759404333260,11.39030572,225.26,225.12,62.1557]
[1759404333261,4.23030572,225.26,225.1,7.32]
[1759404333464,11.59030572,225.25,225.13,7.32]
[1759404333667,7.36,225.23,225.13,7.32]
[1759404333863,3.12094686,225.22,225.13,7.32]
[1759404334062,3.12094686,225.21,225.13,7.32]
[1759404334268,7.36,225.23,225.13,7.32]
[1759404334468,3.13736877,225.22,225.13,7.32]
[1759404334665,3.13736877,225.21,225.16,3.995]
[1759404334858,11.3539,225.23,225.17,7.32]
[1759404335058,7.36,225.21,225.17,7.32]
[1759404336167,7.36,225.21,225.16,3.995]
[1759404337272,7.36,225.21,225.17,7.32]
[1759404337672,7.36,225.21,225.16,3.995]
[1759404337870,62.1171,225.27,225.09,108.56]
[1759404337871,7.36,225.19,225.09,7.32]
[1759404338166,3.13570762,225.18,225.09,7.32]
[1759404338370,7.36,225.19,225.09,7.32]
[1759404338670,3.13421688,225.18,225.12,11.3158]
[1759404338871,3.15722009,225.17,225.12,3.9958]
[1759404339075,11.3547,225.19,225.13,7.32]
[1759404339372,3.15728825,225.18,225.12,11.3158]
[1759404339573,7.36,225.16,225.13,7.32]
[1759404340670,27.26,225.19,225.0,34.86262542]
[1759404340876,7.36,225.14,225.01,7.32]